bitfinex/quotes_SOLUSD_20240605
["timestamp","ask_amount","ask_price","bid_price","bid_amount"]
[1717625205547,7.2,173.42,173.38,34.85103222]
[1717625205864,7.2,173.42,173.36,7.2]
[1717625206065,7.2,173.42,173.39,34.85103222]
[1717625206460,7.2,173.42,173.38,34.85103222]
[1717625206780,7.2,173.42,173.39,34.85103222]
[1717625206964,7.2,173.42,173.4,34.85103222]
[1717625207156,6.3796,173.45,173.36,7.2]
[1717625207357,7.2,173.43,173.4,120.0]
[1717625207959,6.3157,173.43,173.38,120.0]
[1717625208187,13.5157,173.43,173.38,120.0]
[1717625210083,7.2,173.42,173.38,120.0]
[1717625210888,13.5157,173.43,173.38,120.0]
[1717625211989,13.5157,173.43,173.36,7.2]
[1717625212291,13.5157,173.43,173.38,120.0]
[1717625214963,6.4833,173.41,173.37,20.0]
[1717625215183,13.6833,173.4,173.36,20.0]
[1717625215375,7.2,173.39,173.36,20.0]
[1717625218590,8.4587,173.45,173.38,120.0]
[1717625218772,7.2,173.42,173.38,120.0]
[1717625219110,7.2,173.43,173.38,120.0]
[1717625219400,6.3255,173.45,173.37,7.2]
[1717625219401,7.2,173.44,173.4,120.0]
[1717625219773,13.6756,173.44,173.4,120.0]
[1717625222883,13.6756,173.44,173.38,125.769]
[1717625223083,7.2,173.41,173.38,125.769]
[1717625223294,6.4929,173.4,173.38,5.769]
[1717625223473,13.6929,173.39,173.35,120.0]
[1717625223674,6.4929,173.39,173.33,120.0]
[1717625223977,7.2,173.38,173.35,120.0]
[1717625224293,7.2,173.39,173.35,120.0]
[1717625224492,2.1336,173.41,173.33,120.0]
[1717625224697,7.2,173.37,173.33,120.0]
[1717625225372,2.1336,173.42,173.33,120.0]
[1717625225574,7.2,173.37,173.33,120.0]
[1717625226173,7.2,173.38,173.33,120.0]
[1717625230302,7.2,173.37,173.33,120.0]
[1717625233519,7.2,173.36,173.31,120.0]
[1717625233692,7.2,173.36,173.32,20.0]
[1717625236812,2.1336,173.42,173.33,120.0]
[1717625237108,7.2,173.38,173.33,120.0]
[1717625237487,37.4263,173.43,173.35,120.0]
[1717625237681,6.4929,173.43,173.35,120.0]
[1717625237881,6.4929,173.43,173.37,120.0]
[1717625238103,7.2,173.41,173.37,120.0]
[1717625238612,7.2,173.4,173.37,120.0]
[1717625239511,7.2,173.41,173.37,120.0]
[1717625240213,7.2,173.42,173.37,120.0]
[1717625240589,7.2,173.43,173.39,120.0]
[1717625240790,2.133,173.46,173.39,120.0]
[1717625240985,7.2,173.44,173.39,120.0]
[1717625241909,6.2662,173.47,173.39,120.0]
[1717625241910,7.2,173.43,173.39,120.0]
[1717625243391,7.2,173.42,173.39,120.0]
[1717625243605,7.2,173.42,173.37,125.769]
[1717625243811,7.2,173.4,173.37,125.769]
[1717625244011,2.1333,173.44,173.37,125.769]
[1717625244216,7.2,173.4,173.37,120.0]
[1717625244613,7.2,173.41,173.37,120.0]
[1717625245716,7.2,173.41,173.35,5.769]
[1717625246020,7.2,173.41,173.36,25.769]
[1717625246614,2.1331,173.46,173.36,25.769]
[1717625246826,7.2,173.41,173.36,20.0]
[1717625247029,7.2,173.41,173.36,25.769]
[1717625247217,7.2,173.41,173.36,20.0]
[1717625247624,7.2,173.42,173.36,20.0]
[1717625248229,7.2,173.42,173.36,25.769]
[1717625251117,2.1331,173.46,173.36,25.769]
[1717625251429,7.2,173.43,173.36,32.969]
[1717625257328,7.2,173.43,173.38,71.25320104]
[1717625257530,7.2,173.43,173.36,32.969]
[1717625257709,7.2,173.43,173.38,71.25320104]
[1717625258216,7.2,173.43,173.36,32.969]
[1717625258419,7.2,173.43,173.38,71.25320104]
[1717625258931,7.2,173.43,173.36,32.969]
[1717625259532,7.2,173.43,173.38,71.25320104]
[1717625259839,7.2,173.43,173.36,32.969]
[1717625260333,7.2,173.43,173.38,71.25320104]
[1717625260835,7.2,173.43,173.36,32.969]
[1717625261010,7.2,173.43,173.38,71.25320104]
[1717625261208,7.2,173.43,173.36,32.969]
[1717625261833,7.2,173.43,173.38,71.25320104]
[1717625262021,2.1331,173.46,173.36,32.969]
[1717625262022,2.1331,173.46,173.39,71.25320104]
[1717625262338,7.2,173.41,173.37,71.25320104]
[1717625262746,7.2,173.41,173.36,20.0]
[1717625263107,7.2,173.41,173.36,25.769]
[1717625263518,7.2,173.41,173.37,71.25320104]
[1717625264247,7.2,173.4,173.36,25.769]
[1717625264543,7.2,173.4,173.36,97.02220104]
[1717625264742,7.2,173.4,173.36,25.769]
[1717625265032,7.2,173.4,173.36,97.02220104]
[1717625265207,7.2,173.4,173.36,25.769]
[1717625265413,7.2,173.4,173.36,97.02220104]
[1717625266047,7.2,173.4,173.36,25.769]
[1717625266606,7.2,173.41,173.37,71.25320104]
[1717625266835,7.2,173.41,173.36,25.769]
[1717625267009,7.2,173.41,173.37,71.25320104]
[1717625267212,7.2,173.4,173.36,5.769]
[1717625267407,7.2,173.39,173.36,5.769]
[1717625268815,7.2,173.39,173.36,5.769]
[1717625269250,7.2,173.39,173.35,5.769]
[1717625269410,7.2,173.39,173.36,5.769]
[1717625269925,7.2,173.39,173.32,23.3374]
[1717625270234,7.2,173.39,173.34,71.25320104]
[1717625270426,7.2,173.39,173.35,25.769]
[1717625270625,9.3334,173.43,173.35,5.769]
[1717625270828,7.2,173.37,173.35,5.769]
[1717625271162,0.17,173.42,173.35,5.769]
[1717625271163,7.2,173.36,173.35,5.769]
[1717625271445,7.2,173.36,173.33,5.769]
[1717625271754,7.2,173.36,173.34,20.0]
[1717625272322,7.2,173.36,173.33,20.0]
[1717625273141,0.17,173.42,173.33,20.0]
[1717625273333,7.2,173.37,173.33,20.0]
[1717625278941,0.17,173.42,173.34,120.0]
[1717625279148,7.2,173.37,173.35,5.769]
[1717625281431,7.2,173.36,173.34,5.769]
[1717625281629,7.2,173.35,173.28,120.0]
[1717625281850,7.2,173.31,173.26,120.0]
[1717625282640,7.2,173.31,173.26,125.769]
[1717625283859,7.2,173.31,173.27,20.0]
[1717625284036,7.2,173.3,173.27,20.0]
[1717625284348,6.3679,173.35,173.29,120.0]
[1717625284539,7.2,173.34,173.29,120.0]
[1717625284740,7.2,173.34,173.29,125.769]
[1717625286444,6.4542,173.39,173.33,120.0]
[1717625286750,7.2,173.39,173.33,120.0]
[1717625287244,2.1335,173.42,173.35,120.0]
[1717625287448,7.2,173.39,173.35,120.0]
[1717625288032,7.2,173.4,173.35,120.0]
[1717625290441,2.1336,173.41,173.35,120.0]
[1717625290640,7.2,173.4,173.35,120.0]
[1717625291454,7.2,173.39,173.35,120.0]
[1717625292335,7.2,173.39,173.35,120.0]
[1717625293446,7.2,173.39,173.33,125.769]
[1717625293646,7.2,173.38,173.33,5.769]
[1717625296547,7.2,173.38,173.33,67.47604779]
[1717625296758,2.1336,173.42,173.35,61.70704779]
[1717625297053,7.2,173.42,173.37,61.70704779]
[1717625297258,2.1332,173.45,173.38,61.70704779]
[1717625297437,7.2,173.43,173.38,61.70704779]
[1717625298051,7.2,173.43,173.36,12.965]
[1717625298355,7.2,173.43,173.37,12.965]
[1717625298553,7.2,173.43,173.37,5.765]
[1717625298760,7.2,173.43,173.38,61.70704779]
[1717625299163,7.2,173.43,173.36,7.2]
[1717625299368,7.2,173.43,173.36,12.965]
[1717625300070,7.2,173.43,173.38,61.70704779]
[1717625300239,7.2,173.43,173.37,67.47204779]
[1717625300653,7.2,173.42,173.37,61.70704779]
[1717625300854,7.2,173.42,173.36,7.2]
[1717625300855,7.2,173.42,173.36,12.965]
[1717625301066,7.2,173.42,173.37,61.70704779]
[1717625301239,7.2,173.42,173.36,12.965]
[1717625301439,7.2,173.42,173.37,61.70704779]
[1717625301643,7.2,173.42,173.36,12.965]
[1717625301944,7.2,173.42,173.37,61.70704779]
[1717625302150,7.2,173.42,173.36,12.965]
[1717625302338,7.2,173.42,173.37,61.70704779]
[1717625302538,7.2,173.42,173.36,12.965]
[1717625302743,7.2,173.42,173.36,7.2]
[1717625303053,7.2,173.42,173.37,61.70704779]
[1717625303242,7.2,173.42,173.36,7.2]
[1717625303837,7.2,173.42,173.35,7.2]
[1717625304048,7.2,173.42,173.37,61.70704779]
[1717625304245,7.2,173.42,173.35,7.2]
[1717625304449,7.2,173.42,173.37,61.70704779]
[1717625304655,7.2,173.42,173.35,7.2]
[1717625304961,7.2,173.42,173.36,20.0]
[1717625305163,7.2,173.42,173.37,61.70704779]
[1717625305347,7.2,173.42,173.36,25.765]
[1717625305746,7.2,173.42,173.37,61.70704779]
[1717625306056,7.2,173.42,173.36,25.765]
[1717625306281,7.2,173.42,173.37,61.70704779]
[1717625306562,7.2,173.42,173.36,25.765]
[1717625307847,7.2,173.42,173.38,89.10845097]
[1717625308049,7.2,173.42,173.36,25.765]
[1717625308565,7.2,173.42,173.37,89.10845097]
[1717625308771,7.2,173.42,173.36,25.765]
[1717625308971,6.6089,173.4,173.36,5.765]
[1717625309263,7.2,173.37,173.3,7.2]
[1717625309468,7.2,173.37,173.31,25.765]
[1717625309673,7.2,173.37,173.34,89.10845097]
[1717625309848,7.2,173.37,173.31,25.765]
[1717625310040,7.2,173.37,173.31,32.965]
[1717625310246,7.2,173.37,173.34,89.10845097]
[1717625310471,6.6089,173.4,173.31,32.965]
[1717625310675,7.2,173.38,173.34,89.10845097]
[1717625310852,7.2,173.38,173.32,12.965]
[1717625311167,7.2,173.38,173.34,89.10845097]
[1717625311548,7.2,173.38,173.33,25.765]
[1717625311746,7.2,173.38,173.34,89.10845097]
[1717625311942,7.2,173.38,173.33,25.765]
[1717625312150,7.2,173.38,173.34,89.10845097]
[1717625312553,7.2,173.38,173.33,25.765]
[1717625313072,7.2,173.38,173.34,89.10845097]
[1717625313576,7.2,173.38,173.33,25.765]
[1717625314070,7.2,173.38,173.34,89.10845097]
[1717625314282,7.2,173.38,173.33,25.765]
[1717625314451,7.2,173.38,173.34,89.10845097]
[1717625314648,7.2,173.38,173.33,25.765]
[1717625315048,7.2,173.38,173.34,89.10845097]
[1717625315273,7.2,173.38,173.33,25.765]
[1717625316263,6.6089,173.4,173.34,89.10845097]
[1717625316464,7.2,173.38,173.33,25.765]
[1717625316965,7.2,173.38,173.34,89.10845097]
[1717625317157,6.6089,173.4,173.35,89.10845097]
[1717625317366,7.2,173.38,173.33,20.0]
[1717625317677,2.1334,173.43,173.33,27.2]
[1717625317881,8.2845,173.44,173.37,89.10845097]
[1717625318171,7.2,173.41,173.34,7.2]
[1717625318376,7.2,173.4,173.35,20.0]
[1717625318756,7.2,173.4,173.37,89.10845097]
[1717625319150,7.2,173.41,173.35,27.2]
[1717625319462,7.2,173.42,173.38,89.10845097]
[1717625319979,7.2,173.42,173.35,20.0]
[1717625320183,7.2,173.42,173.38,89.10845097]
[1717625320347,7.2,173.42,173.35,7.2]
[1717625321066,7.2,173.42,173.38,84.70833011]
[1717625321280,7.2,173.42,173.35,7.2]
[1717625321466,7.2,173.42,173.38,84.70833011]
[1717625321785,7.2,173.42,173.35,7.2]
[1717625322367,13.5694,173.42,173.35,7.2]
[1717625322566,7.2,173.41,173.36,84.70833011]
[1717625322782,7.2,173.41,173.35,7.2]
[1717625323095,7.2,173.41,173.37,84.70833011]
[1717625323277,7.2,173.41,173.36,84.70833011]
[1717625324179,7.2,173.41,173.34,7.2]
[1717625324465,7.2,173.41,173.36,84.70833011]
[1717625324691,7.2,173.4,173.36,84.70833011]
[1717625324892,7.2,173.4,173.34,7.2]
[1717625325060,7.2,173.4,173.36,84.70833011]
[1717625325260,7.2,173.4,173.34,7.2]
[1717625325486,7.2,173.4,173.35,20.0]
[1717625326184,7.2,173.4,173.36,84.70833011]
[1717625326382,7.2,173.4,173.37,84.70833011]
[1717625326588,7.2,173.4,173.35,20.0]
[1717625327473,7.2,173.4,173.36,84.70833011]
[1717625327869,7.2,173.4,173.35,20.0]
[1717625328079,7.2,173.4,173.36,84.70833011]
[1717625328264,6.3694,173.42,173.37,84.70833011]
[1717625328466,7.2,173.41,173.35,20.0]
[1717625328663,7.2,173.41,173.37,84.70833011]
[1717625329163,7.2,173.41,173.35,20.0]
[1717625329364,7.2,173.4,173.36,84.70833011]
[1717625329666,7.2,173.4,173.35,25.765]
[1717625329992,7.2,173.4,173.37,84.70833011]
[1717625330174,7.2,173.4,173.35,25.765]
[1717625330561,7.2,173.4,173.36,84.70833011]
[1717625330765,7.2,173.4,173.35,25.765]
[1717625330965,7.2,173.4,173.37,84.70833011]
[1717625331599,7.2,173.4,173.36,84.70833011]
[1717625331894,7.2,173.4,173.35,25.765]
[1717625332205,7.2,173.4,173.36,84.70833011]
[1717625332381,7.2,173.4,173.35,25.765]
[1717625332695,7.2,173.4,173.37,62.36601592]
[1717625332882,7.2,173.4,173.35,20.0]
[1717625333067,7.2,173.4,173.37,62.36601592]
[1717625333262,7.2,173.4,173.36,5.765]
[1717625333476,7.2,173.4,173.36,68.13101592]
[1717625333989,6.6437,173.46,173.39,62.36601592]
[1717625334298,7.2,173.43,173.39,62.36601592]
[1717625334479,7.2,173.43,173.36,7.2]
[1717625334675,7.2,173.43,173.37,20.0]
[1717625334996,8.6068,173.46,173.4,62.36601592]
[1717625335177,7.2,173.42,173.37,20.0]
[1717625335495,7.2,173.43,173.37,20.0]
[1717625335785,7.2,173.43,173.4,62.36601592]
[1717625335989,7.2,173.43,173.37,25.765]
[1717625336189,7.2,173.43,173.4,62.36601592]
[1717625336785,7.2,173.43,173.37,25.765]
[1717625336987,7.2,173.43,173.4,62.36601592]
[1717625337399,7.2,173.43,173.37,25.765]
[1717625337577,7.2,173.43,173.4,62.36601592]
[1717625337991,7.2,173.43,173.37,25.765]
[1717625338304,2.1331,173.45,173.4,62.36601592]
[1717625338490,7.2,173.43,173.4,62.36601592]
[1717625338684,7.2,173.43,173.39,62.36601592]
[1717625339084,7.2,173.43,173.38,62.36601592]
[1717625339293,7.2,173.42,173.38,62.36601592]
[1717625339691,7.2,173.42,173.37,20.0]
[1717625339988,7.2,173.42,173.37,5.765]
[1717625340501,7.2,173.42,173.38,62.36601592]
[1717625341395,7.2,173.42,173.38,62.36601592]
[1717625341796,7.2,173.42,173.36,27.2]
[1717625342108,7.2,173.42,173.38,62.36601592]
[1717625342285,7.2,173.42,173.36,32.965]
[1717625342485,7.2,173.42,173.36,27.2]
[1717625342900,7.2,173.42,173.38,62.36601592]
[1717625343108,7.2,173.42,173.36,32.965]
[1717625343283,7.2,173.42,173.38,62.36601592]
[1717625343483,7.2,173.42,173.36,27.2]
[1717625343683,7.2,173.42,173.36,32.965]
[1717625344706,6.2827,173.43,173.36,32.965]
[1717625344891,7.2,173.42,173.38,62.36601592]
[1717625345103,7.2,173.42,173.36,32.965]
[1717625346212,2.45,173.42,173.36,32.965]
[1717625346410,2.45,173.42,173.36,27.2]
[1717625347601,2.45,173.42,173.36,32.965]
[1717625347800,2.45,173.42,173.36,27.2]
[1717625348804,2.45,173.42,173.36,25.765]
[1717625349005,2.45,173.42,173.36,20.0]
[1717625349517,2.45,173.42,173.35,7.2]
[1717625349715,2.45,173.42,173.36,25.765]
[1717625350820,13.4827,173.43,173.36,32.965]
[1717625351011,6.0597,173.51,173.37,0.34]
[1717625351327,7.2,173.47,173.41,7.2]
[1717625351522,2.1326,173.49,173.37,6.105]
[1717625351696,7.2,173.48,173.41,7.2]
[1717625352114,7.2,173.47,173.41,7.2]
[1717625353395,7.2,173.47,173.38,20.0]
[1717625353396,2.133,173.46,173.38,20.0]
[1717625353595,7.2,173.43,173.37,7.2]
[1717625353799,13.3382,173.43,173.38,20.0]
[1717625354097,7.2,173.42,173.38,25.765]
[1717625354302,7.2,173.42,173.38,20.0]
[1717625354600,7.2,173.42,173.37,20.0]
[1717625355500,7.2,173.42,173.37,25.765]
[1717625355719,7.2,173.42,173.37,20.0]
[1717625355925,7.2,173.42,173.36,7.2]
[1717625356218,7.2,173.42,173.37,20.0]
[1717625357330,7.2,173.42,173.39,120.0]
[1717625360025,6.1382,173.43,173.39,120.0]
[1717625360222,7.2,173.42,173.39,120.0]
[1717625360405,6.1382,173.43,173.39,120.0]
[1717625360721,13.3382,173.43,173.39,120.0]
[1717625362506,13.3382,173.43,173.39,120.0]
[1717625363116,7.2,173.42,173.39,120.0]
[1717625364320,7.2,173.42,173.37,20.0]
[1717625364321,6.1872,173.41,173.35,120.0]
[1717625364625,7.2,173.38,173.35,120.0]
[1717625364831,7.2,173.39,173.35,120.0]
[1717625365507,7.2,173.4,173.37,120.0]
[1717625365721,13.3872,173.41,173.37,120.0]
[1717625368431,7.2,173.48,173.42,120.0]
[1717625368606,7.2,173.48,173.44,127.2]
[1717625368813,6.0215,173.49,173.44,127.2]
[1717625369012,6.0215,173.49,173.44,132.965]
[1717625369531,6.0215,173.49,173.44,127.2]
[1717625369833,3.1160137,173.52,173.44,127.2]
[1717625370128,7.2,173.51,173.44,132.965]
[1717625370333,7.2,173.51,173.44,127.2]
[1717625372915,7.2,173.5,173.44,127.2]
[1717625376046,7.2,173.51,173.44,127.2]
[1717625377628,9.3324,173.51,173.44,127.2]
[1717625379316,7.2,173.51,173.46,120.0]
[1717625379517,3.1160137,173.52,173.46,120.0]
[1717625379717,13.5166,173.51,173.46,120.0]
[1717625383240,6.3166,173.51,173.46,127.2]
[1717625383447,0.9837137,173.52,173.48,120.0]
[1717625384129,0.9837137,173.52,173.48,127.2]
[1717625384942,0.9837137,173.52,173.48,120.0]
[1717625386336,14.4388137,173.52,173.48,120.0]
[1717625386526,7.2388137,173.52,173.48,120.0]
[1717625386825,14.4388137,173.52,173.48,120.0]
[1717625387057,0.9837137,173.52,173.48,120.0]
[1717625387345,0.9837137,173.52,173.51,13.574]
[1717625387568,0.9837137,173.52,173.51,20.0]
[1717625390347,0.9837137,173.52,173.5,120.0]
[1717625390545,0.9837137,173.52,173.51,20.0]
[1717625392553,0.9837137,173.52,173.48,120.0]
[1717625394060,0.9837137,173.52,173.49,20.0]
[1717625396468,0.9837137,173.52,173.5,120.0]
[1717625401766,0.9837137,173.52,173.5,127.2]
[1717625401974,0.9837137,173.52,173.51,7.2]
[1717625403479,0.9837137,173.52,173.5,120.0]
[1717625408772,0.9837137,173.52,173.51,7.2]
[1717625410249,0.9837137,173.52,173.51,27.2]
[1717625410789,0.9837137,173.52,173.51,7.2]
[1717625410964,0.9837137,173.52,173.51,27.2]
[1717625412988,0.9837137,173.52,173.51,27.37]
[1717625416888,0.9837137,173.52,173.51,147.37]
[1717625419098,0.9837137,173.52,173.51,153.9663]
[1717625419300,0.9837137,173.52,173.51,153.7963]
[1717625419589,0.9837137,173.52,173.51,154.1363]
[1717625430203,0.9837137,173.52,173.51,147.54]
[1717625436209,0.9837137,173.52,173.51,147.54]
[1717625440997,0.9837137,173.52,173.49,120.0]
[1717625441201,7.6154137,173.52,173.49,120.0]
[1717625442088,7.6154137,173.52,173.5,5.765]
[1717625443093,7.6154137,173.52,173.48,5.765]
[1717625443295,7.6154137,173.52,173.5,5.765]
[1717625443512,7.6154137,173.52,173.49,20.0]
[1717625443696,7.6154137,173.52,173.48,20.0]
[1717625445218,7.6154137,173.52,173.49,120.0]
[1717625454026,7.6154137,173.52,173.49,120.0]
[1717625460113,13.5676,173.51,173.45,1.00202476]
[1717625460508,13.5676,173.51,173.45,8.20202476]
[1717625461111,13.5676,173.51,173.45,63.57315555]
[1717625461321,6.3676,173.51,173.45,8.20202476]
[1717625461641,13.5676,173.51,173.45,63.57315555]
[1717625461808,6.2831,173.5,173.46,20.0]
[1717625463139,6.2831,173.5,173.46,25.765]
[1717625463518,6.2831,173.5,173.46,5.765]
[1717625464261,13.4718,173.48,173.46,5.765]
[1717625464471,6.2918,173.47,173.46,5.765]
[1717625464749,10.2960137,173.52,173.46,12.945]
[1717625464750,7.2755137,173.52,173.46,12.945]
[1717625464949,7.2755137,173.52,173.46,5.765]
[1717625465135,7.2755137,173.52,173.46,12.945]
[1717625465327,7.2755137,173.52,173.47,55.37113079]
[1717625465528,7.2755137,173.52,173.46,12.945]
[1717625465746,7.2755137,173.52,173.47,55.37113079]
[1717625466048,7.2755137,173.52,173.46,12.945]
[1717625466249,7.2755137,173.52,173.46,68.31613079]
[1717625466454,7.2755137,173.52,173.46,62.55113079]
[1717625466636,14.4555137,173.52,173.46,55.37113079]
[1717625466837,14.4555137,173.52,173.46,5.765]
[1717625467150,14.4555137,173.52,173.46,61.13613079]
[1717625472261,13.2838,173.51,173.46,125.765]
[1717625474159,13.5135,173.49,173.46,5.765]
[1717625474366,16.2807,173.51,173.46,5.765]
[1717625474668,7.18,173.48,173.46,5.765]
[1717625475184,7.18,173.49,173.43,5.765]
[1717625475469,7.18,173.49,173.45,5.765]
[1717625476356,7.18,173.49,173.43,5.765]
[1717625476655,7.18,173.49,173.45,5.765]
[1717625477250,13.5135,173.49,173.45,5.765]
[1717625477975,0.9837137,173.52,173.46,132.945]
[1717625478373,0.9837137,173.52,173.47,12.945]
[1717625478960,0.9837137,173.52,173.47,5.765]
[1717625479178,0.9837137,173.52,173.47,12.945]
[1717625485986,8.1637137,173.52,173.46,132.945]
[1717625486291,0.9837137,173.52,173.46,132.945]
[1717625486579,8.1637137,173.52,173.46,132.945]
[1717625487763,0.9837137,173.52,173.46,132.945]
[1717625487960,0.9837137,173.52,173.47,7.18]
[1717625488161,0.9837137,173.52,173.51,133.3248]
[1717625488372,0.9837137,173.52,173.51,153.4948]
[1717625488861,0.9837137,173.52,173.51,159.2598]
[1717625490076,0.9837137,173.52,173.51,153.4948]
[1717625490283,0.9837137,173.52,173.51,159.2598]
[1717625490778,0.9837137,173.52,173.51,159.0898]
[1717625490977,0.9837137,173.52,173.51,152.945]
[1717625491378,0.9837137,173.52,173.51,145.765]
[1717625491560,0.9837137,173.52,173.51,5.765]
[1717625492167,0.9837137,173.52,173.49,127.18]
[1717625492380,0.9837137,173.52,173.5,7.18]
[1717625492882,0.9837137,173.52,173.51,127.18]
[1717625493377,0.9837137,173.52,173.51,132.945]
[1717625495779,0.9837137,173.52,173.51,125.765]
[1717625496080,0.9837137,173.52,173.51,132.945]
[1717625498294,0.9837137,173.52,173.51,145.765]
[1717625498467,0.9837137,173.52,173.51,152.945]
[1717625498788,0.9837137,173.52,173.51,145.765]
[1717625498994,0.9837137,173.52,173.51,152.945]
[1717625499180,0.9837137,173.52,173.51,145.765]
[1717625499482,0.9837137,173.52,173.51,152.945]
[1717625508200,0.9837137,173.52,173.51,147.18]
[1717625513082,0.9837137,173.52,173.51,153.983]
[1717625513589,0.9837137,173.52,173.51,147.52]
[1717625514395,0.9837137,173.52,173.51,147.35]
[1717625514795,0.9837137,173.52,173.51,147.18]
[1717625515602,0.9837137,173.52,173.51,140.0]
[1717625515786,0.9837137,173.52,173.51,27.18]
[1717625516305,0.9837137,173.52,173.51,147.18]
[1717625519197,0.9837137,173.52,173.51,140.0]
[1717625519399,0.9837137,173.52,173.51,147.18]
[1717625528824,0.9837137,173.52,173.51,140.0]
[1717625529020,0.9837137,173.52,173.51,147.18]
[1717625536622,0.9837137,173.52,173.51,147.35]
[1717625545825,0.9837137,173.52,173.51,147.35]
[1717625547656,0.9837137,173.52,173.51,140.17]
[1717625547950,0.9837137,173.52,173.51,147.35]
[1717625548843,0.9837137,173.52,173.51,140.0]
[1717625549051,0.9837137,173.52,173.51,147.18]
[1717625549719,0.9837137,173.52,173.51,152.945]
[1717625550025,0.9837137,173.52,173.51,147.18]
[1717625551542,0.9837137,173.52,173.51,127.18]
[1717625551843,0.9837137,173.52,173.51,147.18]
[1717625552551,0.9837137,173.52,173.51,140.0]
[1717625552730,0.9837137,173.52,173.51,147.18]
[1717625556850,0.9837137,173.52,173.51,140.0]
[1717625557053,0.9837137,173.52,173.51,147.18]
[1717625558246,0.9837137,173.52,173.51,140.0]
[1717625558546,0.9837137,173.52,173.51,120.0]
[1717625559131,0.9837137,173.52,173.5,7.18]
[1717625559337,0.9837137,173.52,173.49,121.00180815]
[1717625559651,0.9837137,173.52,173.5,7.18]
[1717625568673,0.9837137,173.52,173.49,121.00180815]
[1717625568968,0.9837137,173.52,173.5,20.0]
[1717625570666,7.2431137,173.52,173.49,1.00180815]
[1717625570847,7.2431137,173.52,173.48,27.18]
[1717625571047,7.2431137,173.52,173.48,20.0]
[1717625578573,7.2431137,173.52,173.47,127.18]
[1717625578868,7.2431137,173.52,173.48,20.0]
[1717625579258,0.9837137,173.52,173.49,120.0]
[1717625579459,0.9837137,173.52,173.49,127.18]
[1717625580467,0.9837137,173.52,173.5,7.18]
[1717625580847,0.9837137,173.52,173.49,120.0]
[1717625581158,0.9837137,173.52,173.49,7.18]
[1717625581363,0.9837137,173.52,173.48,27.18]
[1717625581566,0.9837137,173.52,173.48,20.0]
[1717625581762,0.9837137,173.52,173.48,27.18]
[1717625582269,0.9837137,173.52,173.48,20.0]
[1717625584161,0.9837137,173.52,173.48,27.18]
[1717625585576,0.9837137,173.52,173.48,20.0]
[1717625586157,7.3672137,173.52,173.48,20.0]
[1717625588858,6.1164,173.51,173.44,120.0]
[1717625589079,6.1164,173.51,173.46,7.18]